bitfinex/quotes_BTCUSD_20240827
["timestamp","ask_amount","ask_price","bid_price","bid_amount"]
[1724769289604,1.65578799,62171.0,62170.0,0.00813066]
[1724769289839,1.447713,62167.0,62166.0,0.1]
[1724769290066,2.05239245,62167.0,62166.0,0.1]
[1724769291144,1.73067845,62167.0,62166.0,0.1]
[1724769291352,1.73067845,62167.0,62166.0,0.101]
[1724769291555,1.74946676,62167.0,62166.0,0.1]
[1724769291992,1.74946676,62167.0,62166.0,0.101]
[1724769292223,1.76385671,62167.0,62166.0,0.101]
[1724769292679,2.04771164,62167.0,62166.0,0.09253125]
[1724769292886,2.36942564,62167.0,62166.0,0.09335325]
[1724769293103,0.804607,62142.0,62141.0,0.3823]
[1724769293317,0.160924,62141.0,62140.0,0.000822]
[1724769293524,0.482772,62141.0,62140.0,0.000822]
[1724769293725,0.80462,62141.0,62140.0,0.000822]
[1724769293933,0.82983397,62141.0,62140.0,0.000822]
[1724769294898,0.80462,62141.0,62140.0,0.000822]
[1724769295128,0.96458545,62141.0,62140.0,0.000822]
[1724769295332,1.56428838,62141.0,62140.0,0.000822]
[1724769295746,1.63925365,62141.0,62140.0,0.004822]
[1724769296168,1.56428838,62141.0,62140.0,0.004822]
[1724769296783,1.57328838,62141.0,62140.0,0.001822]
[1724769297440,1.56428838,62141.0,62140.0,0.000822]
[1724769297641,1.56728838,62141.0,62140.0,0.000822]
[1724769298337,1.59250523,62141.0,62140.0,0.000822]
[1724769298554,1.59850523,62141.0,62140.0,0.000822]
[1724769298760,1.6364983,62141.0,62140.0,0.000822]
[1724769298974,1.91135323,62141.0,62140.0,0.000822]
[1724769299421,1.92335323,62141.0,62140.0,0.000822]
[1724769299635,2.08331868,62141.0,62140.0,0.000822]
[1724769300080,1.85685843,62141.0,62140.0,0.000822]
[1724769300294,1.87985843,62141.0,62140.0,0.000822]
[1724769300509,1.88685843,62141.0,62140.0,0.000822]
[1724769300715,1.54201043,62141.0,62140.0,0.000822]
[1724769300926,1.51679358,62141.0,62140.0,0.000822]
[1724769301340,1.54201174,62141.0,62140.0,0.000822]
[1724769301550,1.53001174,62141.0,62140.0,0.000822]
[1724769301972,1.54201174,62141.0,62140.0,0.000822]
[1724769302177,1.69621291,62141.0,62140.0,0.000822]
[1724769302419,1.54201174,62141.0,62140.0,0.000822]
[1724769303079,1.86385974,62141.0,62140.0,0.000822]
[1724769303283,1.66429961,62141.0,62140.0,0.000822]
[1724769303491,1.88685974,62141.0,62140.0,0.000822]
[1724769303694,2.04682519,62141.0,62140.0,0.000822]
[1724769303907,1.56501174,62141.0,62140.0,0.000822]
[1724769304112,1.54201174,62141.0,62140.0,0.000822]
[1724769304830,1.51679358,62141.0,62140.0,0.000822]
[1724769305044,1.86164158,62141.0,62140.0,0.000822]
[1724769305247,1.53979358,62141.0,62140.0,0.000822]
[1724769305479,1.69377294,62141.0,62140.0,0.000822]
[1724769305710,1.51679358,62141.0,62140.0,0.000822]
[1724769306149,1.83864158,62141.0,62140.0,0.000822]
[1724769306359,1.51679358,62141.0,62140.0,0.000822]
[1724769306976,1.68619358,62141.0,62140.0,0.000822]
[1724769307174,1.51679358,62141.0,62140.0,0.000822]
[1724769307992,1.51679358,62141.0,62140.0,0.606622]
[1724769307993,0.179924,62141.0,62140.0,0.606622]
[1724769308367,0.20514053,62141.0,62140.0,0.606622]
[1724769308799,0.51498853,62141.0,62140.0,0.606622]
[1724769309008,0.19314053,62141.0,62140.0,0.606622]
[1724769309216,0.03821653,62141.0,62140.0,0.606622]
[1724769309435,0.03121653,62141.0,62140.0,0.6681874]
[1724769309695,0.03121653,62141.0,62140.0,0.606622]
[1724769309696,0.03421653,62141.0,62140.0,0.606622]
[1724769309930,0.009,62141.0,62140.0,0.606622]
[1724769311080,0.009,62141.0,62140.0,0.6681874]
[1724769311546,0.491772,62141.0,62140.0,0.606622]
[1724769312021,0.491772,62141.0,62140.0,0.000822]
[1724769312022,0.97358545,62141.0,62140.0,0.000822]
[1724769312299,1.2952399,62141.0,62140.0,0.000822]
[1724769312535,1.28643345,62141.0,62140.0,0.000822]
[1724769312743,1.28743345,62141.0,62140.0,0.006822]
[1724769312969,2.00980221,62141.0,62140.0,0.006822]
[1724769313192,2.00880221,62141.0,62140.0,0.006822]
[1724769313414,2.00780221,62141.0,62140.0,0.000822]
[1724769313654,1.88805886,62141.0,62140.0,0.000822]
[1724769314121,1.91764404,62141.0,62140.0,0.000822]
[1724769314345,1.94064404,62141.0,62140.0,0.000822]
[1724769314548,1.94964404,62141.0,62140.0,0.001822]
[1724769314961,2.17839221,62141.0,62140.0,0.001822]
[1724769315410,2.19139221,62141.0,62140.0,0.002822]
[1724769315857,2.35327476,62141.0,62140.0,0.002822]
[1724769316095,0.321921,62127.0,62126.0,0.00821]
[1724769316320,0.98997478,62127.0,62126.0,0.00821]
[1724769316528,2.05353045,62127.0,62126.0,0.00821]
[1724769316778,2.05353045,62127.0,62097.0,0.3793]
[1724769316779,0.321947,62122.0,62097.0,0.3793]
[1724769317005,0.55629062,62125.0,62097.0,0.3793]
[1724769317006,0.643946,62117.0,62097.0,0.3793]
[1724769318831,0.96522045,62092.0,62091.0,0.0004]
[1724769319464,0.99045634,62092.0,62091.0,0.0004]
[1724769319892,1.00045634,62092.0,62091.0,0.0004]
[1724769320772,1.01345634,62092.0,62091.0,0.0004]
[1724769321190,1.42255834,62092.0,62091.0,0.0004]
[1724769321410,1.75766034,62092.0,62091.0,0.0004]
[1724769321887,2.04980565,62092.0,62091.0,0.0004]
[1724769322094,1.75766034,62092.0,62091.0,0.0004]
[1724769322305,1.77166034,62092.0,62091.0,0.0004]
[1724769322532,1.93762579,62092.0,62091.0,0.0004]
[1724769322750,1.92362579,62092.0,62091.0,0.0004]
[1724769322981,1.93162579,62092.0,62091.0,0.0004]
[1724769323207,1.9321553,62092.0,62091.0,0.0004]
[1724769323637,1.9461553,62092.0,62091.0,0.0004]
[1724769324118,1.9321553,62092.0,62091.0,0.0004]
[1724769324335,2.54640261,62092.0,62091.0,0.0004]
[1724769324555,2.22430061,62092.0,62091.0,0.0004]
[1724769324805,1.9601553,62092.0,62091.0,0.0004]
[1724769325024,1.93491941,62092.0,62091.0,0.0004]
[1724769325482,1.9063899,62092.0,62091.0,0.0004]
[1724769325916,0.97922045,62092.0,62091.0,0.0004]
[1724769326129,0.64311845,62092.0,62091.0,0.0004]
[1724769326350,0.33501645,62092.0,62091.0,0.0004]
[1724769326611,0.014,62092.0,62091.0,0.3889]
[1724769326833,0.4726,62103.0,62095.0,0.001]
[1724769327043,0.4726,62103.0,62096.0,0.5948]
[1724769327255,0.4726,62110.0,62102.0,0.4034]
[1724769327474,0.794611,62110.0,62102.0,0.4034]
[1724769327728,0.16101,62108.0,62104.0,0.4034]
[1724769327950,0.805087,62105.0,62104.0,0.4034]
[1724769328197,0.96505245,62105.0,62104.0,0.4034]
[1724769328415,1.56523276,62105.0,62104.0,0.4034]
[1724769328631,2.04723321,62105.0,62104.0,0.4034]
[1724769329086,2.04723321,62105.0,62091.0,0.0004]
[1724769329087,0.32205,62102.0,62091.0,0.0004]
[1724769329299,1.40550231,62092.0,62091.0,0.401]
[1724769329522,1.56546776,62092.0,62091.0,0.401823]
[1724769329950,1.88756976,62092.0,62091.0,0.401823]
[1724769330162,2.06711654,62092.0,62091.0,0.001223]
[1724769330375,2.16711654,62092.0,62091.0,0.002223]
[1724769330588,1.98756976,62092.0,62091.0,0.002223]
[1724769330804,2.0128074,62092.0,62091.0,0.002223]
[1724769331027,1.6907054,62092.0,62091.0,0.001223]
[1724769331252,1.5907054,62092.0,62091.0,0.001223]
[1724769331472,0.99845809,62092.0,62091.0,0.404923]
[1724769331903,1.01245809,62092.0,62091.0,0.404923]
[1724769332133,0.99845809,62092.0,62091.0,0.404923]
[1724769332344,1.00845809,62092.0,62091.0,0.404923]
[1724769332560,0.68635609,62092.0,62091.0,0.404923]
[1724769332787,0.52639064,62092.0,62091.0,0.404923]
[1724769333222,0.84049264,62092.0,62091.0,0.403923]
[1724769333450,0.51839064,62092.0,62091.0,0.403923]
[1724769333663,1.36465146,62092.0,62091.0,0.404923]
[1724769333880,1.2806034,62092.0,62091.0,0.404923]
[1724769334088,1.9458074,62092.0,62091.0,0.001223]
[1724769334307,1.82762754,62092.0,62091.0,0.001223]
[1724769334520,1.92962754,62092.0,62091.0,0.001223]
[1724769334753,2.25172954,62092.0,62091.0,0.001223]
[1724769334987,1.9023899,62092.0,62091.0,0.001223]
[1724769335221,1.8923899,62092.0,62091.0,0.001223]
[1724769335736,1.9063899,62092.0,62091.0,0.001223]
[1724769336364,1.9203899,62092.0,62091.0,0.001223]
[1724769337024,1.9063899,62092.0,62091.0,0.001223]
[1724769337243,1.9203899,62092.0,62091.0,0.001223]
[1724769337658,2.2424919,62092.0,62091.0,0.001223]
[1724769337867,1.9203899,62092.0,62091.0,0.001223]
[1724769338325,1.94562872,62092.0,62091.0,0.001223]
[1724769338752,2.22377403,62092.0,62091.0,0.001223]
[1724769339169,2.19853521,62092.0,62091.0,0.001223]
[1724769340462,1.9203899,62092.0,62091.0,0.001223]
[1724769340703,2.01556976,62092.0,62091.0,0.399623]
[1724769340909,2.01556976,62092.0,62091.0,0.599123]
[1724769341144,1.69346776,62092.0,62091.0,0.599123]
[1724769341348,1.71870602,62092.0,62091.0,0.599123]
[1724769341550,2.04171442,62092.0,62091.0,0.599123]
[1724769341757,1.70561242,62092.0,62091.0,0.599123]
[1724769342172,1.71561242,62092.0,62091.0,0.599123]
[1724769342621,1.69161242,62092.0,62091.0,0.599123]
[1724769342833,1.70461242,62092.0,62091.0,0.599123]
[1724769343038,1.71861242,62092.0,62091.0,0.600123]
[1724769343298,1.86354314,62092.0,62091.0,0.600123]
[1724769343504,1.86354314,62092.0,62091.0,0.599123]
[1724769343505,1.85954314,62092.0,62091.0,0.599123]
[1724769343711,1.85354314,62092.0,62091.0,0.599123]
[1724769344327,2.17564514,62092.0,62091.0,0.599123]
[1724769344554,2.17564514,62092.0,62091.0,0.001223]
[1724769344770,2.21264514,62092.0,62091.0,0.001223]
[1724769345008,2.53474714,62092.0,62091.0,0.001223]
[1724769345220,2.53274714,62092.0,62091.0,0.001223]
[1724769345465,2.52074714,62092.0,62091.0,0.001223]
[1724769345710,2.36678169,62092.0,62091.0,0.001223]
[1724769346190,1.74753438,62092.0,62091.0,0.399423]
[1724769346434,2.03967969,62092.0,62091.0,0.597423]
[1724769346666,2.03967969,62092.0,62091.0,0.596423]
[1724769346667,2.01167969,62092.0,62091.0,0.596423]
[1724769346912,2.02567969,62092.0,62091.0,0.597423]
[1724769347125,2.19964514,62092.0,62091.0,0.002223]
[1724769347345,2.02567969,62092.0,62091.0,0.001223]
[1724769347819,1.71557769,62092.0,62091.0,0.399423]
[1724769348530,1.67633943,62092.0,62091.0,0.399423]
[1724769348982,1.69033943,62092.0,62091.0,0.399423]
[1724769349204,1.56433943,62092.0,62091.0,0.398423]
[1724769349434,1.57233943,62092.0,62091.0,0.398423]
[1724769349683,0.50302467,62092.0,62091.0,0.583923]
[1724769349907,0.0219064,62092.0,62091.0,0.6237653]
[1724769350080,0.0089064,62092.0,62091.0,0.6237653]
[1724769350286,0.0089064,62092.0,62091.0,0.6247653]
[1724769350494,0.0089064,62092.0,62091.0,0.584923]
[1724769350670,0.02523543,62093.0,62092.0,0.591]
[1724769350870,0.161035,62098.0,62095.0,0.1855]
[1724769351101,0.16103,62100.0,62097.0,0.1855]
[1724769351306,0.161033,62099.0,62098.0,0.5856]
[1724769351709,0.161031,62100.0,62099.0,0.4001]
[1724769351981,0.4726,62103.0,62102.0,0.4011]
[1724769352181,0.4726,62103.0,62102.0,0.5866]
[1724769353158,0.4736,62103.0,62102.0,0.5896]
[1724769353367,0.634622,62103.0,62102.0,0.5886]
[1724769353567,0.4736,62103.0,62102.0,0.5906]
[1724769353764,0.4745064,62103.0,62102.0,0.5906]
[1724769353971,0.1639284,62103.0,62102.0,0.5906]
[1724769354141,0.1629284,62103.0,62102.0,0.5876]
[1724769354347,0.1619284,62103.0,62102.0,0.5876]
[1724769354951,0.0009064,62103.0,62102.0,0.5876]
[1724769355297,0.0009064,62103.0,62102.0,0.5856]
[1724769355496,0.0009064,62103.0,62102.0,0.64436]
[1724769355704,0.0029064,62103.0,62102.0,0.64736]
[1724769355911,0.0039064,62103.0,62102.0,0.64836]
[1724769356113,0.0039064,62103.0,62102.0,0.64536]
[1724769356322,0.0009064,62103.0,62102.0,0.5866]
[1724769356469,0.0019064,62103.0,62102.0,0.5896]
[1724769356677,0.0049064,62103.0,62102.0,0.5916]
[1724769356870,0.4726,62114.0,62108.0,0.001]
[1724769357129,0.4726,62114.0,62111.0,0.5838]
[1724769357689,0.003,62121.0,62111.0,0.74376545]
[1724769358090,0.003,62121.0,62112.0,0.3957]
[1724769358310,0.003,62121.0,62114.0,0.3957]
[1724769358536,0.003,62121.0,62115.0,0.1833]
[1724769358685,0.003,62121.0,62116.0,0.3957]
[1724769358888,0.003,62130.0,62123.0,0.001]
[1724769359111,0.001,62127.0,62124.0,0.1838]
[1724769359321,0.003,62127.0,62125.0,0.3885]
[1724769359539,0.003,62127.0,62125.0,0.44583]
[1724769359950,0.003,62127.0,62125.0,0.3885]
[1724769360741,0.004,62127.0,62125.0,0.3935]
[1724769362168,0.003,62127.0,62125.0,0.3885]
[1724769362746,0.004,62127.0,62125.0,0.3695]
[1724769362974,0.32092845,62126.0,62125.0,0.3735]
[1724769363177,0.96478045,62126.0,62125.0,0.3735]
[1724769363375,1.28670645,62126.0,62125.0,0.01]
[1724769363716,1.60863245,62126.0,62125.0,0.006]
[1724769364108,1.28670645,62126.0,62125.0,0.004]
[1724769364522,1.29270645,62126.0,62125.0,0.005]
[1724769364961,0.97078045,62126.0,62125.0,0.005]
[1724769365393,1.29270645,62126.0,62125.0,0.005]
[1724769365592,1.29270645,62126.0,62125.0,0.001822]
[1724769365977,1.29370645,62126.0,62125.0,0.001822]
[1724769366423,1.29270645,62126.0,62125.0,0.001822]
[1724769366622,1.29370645,62126.0,62125.0,0.001822]
[1724769366825,1.28770645,62126.0,62125.0,0.000822]
[1724769367006,1.28770645,62126.0,62125.0,0.001822]
[1724769367205,1.7755979,62126.0,62125.0,0.001822]
[1724769367421,1.96055845,62126.0,62125.0,0.001822]
[1724769367674,1.127049,62109.0,62108.0,0.3849]
[1724769367889,1.28701445,62109.0,62108.0,0.3849]
[1724769368285,1.31224305,62109.0,62108.0,0.3849]
[1724769368502,1.28701445,62109.0,62108.0,0.3849]
[1724769370550,1.29201445,62109.0,62108.0,0.3849]
[1724769371190,1.31724349,62109.0,62108.0,0.3849]
[1724769372886,1.31224349,62109.0,62108.0,0.3849]
[1724769373091,1.31724349,62109.0,62108.0,0.3849]
[1724769373517,1.31224349,62109.0,62108.0,0.3849]
[1724769373723,1.31524349,62109.0,62108.0,0.3849]
[1724769373908,1.31224349,62109.0,62108.0,0.3879]
[1724769374303,1.31624349,62109.0,62108.0,0.3879]
[1724769374518,1.31624349,62109.0,62108.0,0.3849]
[1724769374742,1.31224349,62109.0,62108.0,0.3849]
[1724769375847,1.63425749,62109.0,62108.0,0.3849]
[1724769375848,1.63425749,62109.0,62091.0,0.001223]
[1724769375849,0.001,62101.0,62091.0,0.001223]
[1724769376103,1.28832245,62092.0,62091.0,0.001223]
[1724769376352,1.28832245,62092.0,62074.0,0.414]
[1724769376353,1.08358231,62078.0,62074.0,0.414]
[1724769376611,1.66572276,62078.0,62074.0,0.414]
[1724769377087,1.98789776,62078.0,62074.0,0.414]
[1724769377321,1.56572276,62078.0,62074.0,0.414]
[1724769378070,1.56572276,62078.0,62071.0,0.2003]
[1724769378071,1.57772276,62078.0,62071.0,0.0004]
[1724769379063,1.57772276,62078.0,62077.0,0.3982274]
[1724769379320,1.56572276,62078.0,62077.0,0.3982274]
[1724769379555,1.56572276,62078.0,62077.0,0.0205274]
[1724769379793,1.60496458,62078.0,62077.0,0.0205274]
[1724769380044,1.59096458,62078.0,62077.0,0.0205274]
[1724769380263,1.75693003,62078.0,62077.0,0.0205274]
[1724769380484,2.19110503,62078.0,62077.0,0.0205274]
[1724769380696,2.18510503,62078.0,62077.0,0.0205274]
[1724769381201,2.1929113,62078.0,62077.0,0.0205274]
[1724769381421,2.1809113,62078.0,62077.0,0.0205274]
[1724769381640,2.1949113,62078.0,62077.0,0.0205274]
[1724769382514,2.1869113,62078.0,62077.0,0.0205274]
[1724769382723,2.1929113,62078.0,62077.0,0.0205274]
[1724769382947,2.03294585,62078.0,62077.0,0.0205274]
[1724769383163,1.69677085,62078.0,62077.0,0.0205274]
[1724769383396,1.69077085,62078.0,62077.0,0.0205274]
[1724769383610,1.71077085,62078.0,62077.0,0.0205274]
[1724769383821,1.69877085,62078.0,62077.0,0.0205274]
[1724769384049,1.8587363,62078.0,62077.0,0.0205274]
[1724769384281,1.8647363,62078.0,62077.0,0.0205274]
[1724769384500,2.1789113,62078.0,62077.0,0.0205274]
[1724769384729,2.15366948,62078.0,62077.0,0.0205274]
[1724769384959,1.84349448,62078.0,62077.0,0.0205274]
[1724769385198,1.67152903,62078.0,62077.0,0.4209274]
[1724769385439,1.67152903,62078.0,62077.0,0.0205274]
[1724769385663,1.99370403,62078.0,62077.0,0.0205274]
[1724769385910,1.66552903,62078.0,62077.0,0.0205274]
[1724769386135,1.98770403,62078.0,62077.0,0.0205274]
[1724769386383,1.83349448,62078.0,62077.0,0.0205274]
[1724769386620,1.68752903,62078.0,62077.0,0.0205274]
[1724769386891,1.67952903,62078.0,62077.0,0.0205274]
[1724769387123,1.98770403,62078.0,62077.0,0.0205274]
[1724769387360,1.67152903,62078.0,62077.0,0.0205274]
[1724769387884,1.68352903,62078.0,62077.0,0.2169274]
[1724769388122,1.84349448,62078.0,62077.0,0.2169274]
[1724769388364,2.16566948,62078.0,62077.0,0.0205274]
[1724769389595,1.450138,62063.0,62062.0,0.00824]
[1724769389848,1.88824876,62063.0,62062.0,0.00824]
[1724769390546,1.61010345,62063.0,62062.0,0.00824]
[1724769390776,1.88824876,62063.0,62062.0,0.00824]
[1724769391005,1.90224876,62063.0,62062.0,0.00824]
[1724769391240,2.08746337,62063.0,62062.0,0.00824]
[1724769391705,2.09346337,62063.0,62062.0,0.00824]
[1724769391956,2.07946337,62063.0,62062.0,0.00824]
[1724769392199,1.91949792,62063.0,62062.0,0.00824]
[1724769392873,1.91349792,62063.0,62062.0,0.00824]
[1724769393118,1.92149792,62063.0,62062.0,0.00824]
[1724769393340,1.93249792,62063.0,62062.0,0.00824]
[1724769393565,1.91349792,62063.0,62062.0,0.00824]
[1724769393804,2.08646337,62063.0,62062.0,0.00824]
[1724769394090,2.09346337,62063.0,62062.0,0.00824]
[1724769394315,2.40271637,62063.0,62062.0,0.00824]
[1724769394564,2.40771637,62063.0,62062.0,0.00824]
[1724769394794,2.40271637,62063.0,62062.0,0.00824]
[1724769395029,2.39046721,62063.0,62062.0,0.00824]
[1724769395476,2.06821421,62063.0,62062.0,0.00824]
[1724769396222,2.06121421,62063.0,62062.0,0.00824]
[1724769396694,2.05721421,62063.0,62062.0,0.00824]
[1724769396931,2.07121421,62063.0,62062.0,0.00824]
[1724769397625,1.91124876,62063.0,62062.0,0.00824]
[1724769398351,1.9364978,62063.0,62062.0,0.00824]
[1724769400260,1.6142448,62063.0,62062.0,0.39594]
[1724769400500,0.85388104,62063.0,62062.0,0.58414]
[1724769401186,1.10902635,62063.0,62062.0,0.58414]
[1724769401394,1.43127935,62063.0,62062.0,0.58414]
[1724769401651,0.79377335,62063.0,62062.0,0.58414]
[1724769402066,1.11602635,62063.0,62062.0,0.58414]
[1724769402308,0.79377335,62063.0,62062.0,0.58414]
[1724769402751,0.47152035,62063.0,62062.0,0.58414]
[1724769402971,0.79377335,62063.0,62062.0,0.58414]
[1724769403414,0.47152035,62063.0,62062.0,0.58514]
[1724769403623,0.03424904,62063.0,62062.0,0.58514]
[1724769404277,0.19537504,62063.0,62062.0,0.58514]
[1724769404485,0.19337504,62063.0,62062.0,0.58514]
[1724769404725,0.19437504,62063.0,62062.0,0.58714]
[1724769404962,0.162126,62063.0,62062.0,0.58714]
[1724769405184,0.163126,62063.0,62062.0,0.58914]
[1724769405423,0.485379,62063.0,62062.0,0.58914]
[1724769405868,0.163126,62063.0,62062.0,0.58914]
[1724769406106,0.002,62063.0,62062.0,0.58914]
[1724769406325,0.002,62063.0,62062.0,0.648054]
[1724769406563,0.322185,62077.0,62070.0,0.6006]
[1724769406829,0.794796,62074.0,62070.0,0.6006]
[1724769407045,0.4726,62074.0,62070.0,0.6006]
[1724769407491,0.161102,62073.0,62070.0,0.6006]
[1724769407928,0.00490421,62071.0,62070.0,0.6016]
[1724769408157,0.00190421,62071.0,62070.0,0.6016]
[1724769408391,0.00190421,62071.0,62070.0,0.66176]
[1724769408618,0.02524266,62082.0,62081.0,0.574]
[1724769408839,0.18631966,62082.0,62081.0,0.574]
[1724769409310,0.02524266,62082.0,62081.0,0.574]
[1724769410506,0.4726,62090.0,62089.0,0.574]
[1724769410731,0.323078,62097.0,62094.0,0.001]
[1724769410956,0.161044,62095.0,62094.0,0.1971]
[1724769411193,0.161044,62095.0,62094.0,0.574]
[1724769411410,0.161044,62095.0,62094.0,0.6314]
[1724769411629,0.16204,62097.0,62096.0,0.001]
[1724769411900,0.16104,62097.0,62096.0,0.4085]
[1724769412114,0.483116,62097.0,62096.0,0.4085]
[1724769412331,0.484116,62097.0,62096.0,0.46896]
[1724769412766,0.483116,62097.0,62096.0,0.46896]
[1724769412975,0.484116,62097.0,62096.0,0.46896]
[1724769413237,0.806192,62097.0,62096.0,0.4075]
[1724769413673,0.16104,62097.0,62096.0,0.4085]
[1724769413907,0.34729764,62100.0,62094.0,0.1961]
[1724769413908,0.161033,62099.0,62098.0,0.4158]
[1724769414128,0.02523264,62100.0,62099.0,0.6]
[1724769414348,0.02523264,62100.0,62098.0,0.06129]
[1724769414349,0.4726,62104.0,62103.0,0.5808]
[1724769414784,0.00090421,62109.0,62108.0,0.1825]
[1724769415016,0.00090421,62109.0,62108.0,0.5915]
[1724769415236,0.00090421,62109.0,62108.0,0.66696856]
[1724769415895,0.16191121,62109.0,62108.0,0.66696856]
[1724769416119,0.48392521,62109.0,62108.0,0.5915]
[1724769417238,0.48392521,62109.0,62108.0,0.6015]
[1724769417692,0.48392521,62109.0,62108.0,0.6025]
[1724769417900,0.48392521,62109.0,62108.0,0.6015]
[1724769418112,0.48392521,62109.0,62108.0,0.66165]
[1724769418523,0.16191121,62109.0,62108.0,0.65665]
[1724769418737,0.48392521,62109.0,62108.0,0.65665]
[1724769418956,0.00090421,62109.0,62108.0,0.66165]
[1724769419414,0.16191121,62109.0,62108.0,0.5965]
[1724769419679,0.48392521,62109.0,62108.0,0.5965]
[1724769419898,0.80593921,62109.0,62108.0,0.6015]
[1724769420328,0.80593921,62109.0,62108.0,0.5965]
[1724769420547,0.80593921,62109.0,62108.0,0.005]
[1724769420548,1.12795321,62109.0,62108.0,0.005]
[1724769420767,0.80593921,62109.0,62108.0,0.006]
[1724769420990,0.80593921,62109.0,62108.0,0.005]
[1724769421421,0.80593921,62109.0,62108.0,0.006]
[1724769421631,0.483052,62105.0,62104.0,0.001]
[1724769422066,0.483052,62105.0,62103.0,0.3797]
[1724769422067,0.16102,62104.0,62103.0,0.3797]
[1724769422281,0.8051,62104.0,62103.0,0.3797]
[1724769422530,1.12714,62104.0,62103.0,0.3797]
[1724769422777,0.8051,62104.0,62103.0,0.3797]
[1724769423014,0.48306,62104.0,62103.0,0.3797]
[1724769423225,0.8051,62104.0,62103.0,0.3797]
[1724769423865,0.02622916,62105.0,62104.0,0.006]
[1724769424089,0.18724616,62105.0,62104.0,0.006]
[1724769424304,0.48306,62104.0,62103.0,0.43721]
[1724769424522,0.48406,62104.0,62103.0,0.44421]
[1724769424979,0.48406,62104.0,62103.0,0.44821]
[1724769425191,0.48406,62104.0,62103.0,0.3917]
[1724769425652,0.8061,62104.0,62103.0,0.3907]
[1724769426322,1.12814,62104.0,62103.0,0.3907]
[1724769426748,0.8061,62104.0,62103.0,0.3907]
[1724769426966,1.12914,62104.0,62103.0,0.3977]
[1724769427435,1.1300453,62104.0,62103.0,0.3977]
[1724769427646,0.8080053,62104.0,62103.0,0.3977]
[1724769429436,0.1639253,62104.0,62103.0,0.45601]
[1724769429876,0.0029053,62104.0,62103.0,0.45701]
[1724769432187,0.0029053,62104.0,62103.0,0.3987]
[1724769434591,0.0029053,62104.0,62103.0,0.59]
[1724769437204,0.4859653,62104.0,62103.0,0.589]
[1724769437405,0.8080053,62104.0,62103.0,0.018]
[1724769437634,1.1300453,62104.0,62103.0,0.018]
[1724769440152,1.408524,62104.0,62103.0,0.018]
[1724769440576,1.43375456,62104.0,62103.0,0.018]
[1724769442068,1.59372001,62104.0,62103.0,0.018]
[1724769442516,1.61893307,62104.0,62103.0,0.018]
[1724769443403,1.61793307,62104.0,62103.0,0.011]
[1724769443627,0.805202,62096.0,62095.0,0.4063]
[1724769444701,1.0836807,62096.0,62095.0,0.4063]
[1724769444915,1.10891361,62096.0,62095.0,0.001]
[1724769445352,1.0836807,62096.0,62095.0,0.001]
[1724769445585,1.0836807,62096.0,62095.0,0.007]
[1724769445795,0.805202,62096.0,62095.0,0.06648]
[1724769446006,0.483121,62096.0,62095.0,0.06648]
[1724769446251,0.16104,62097.0,62095.0,0.06648]
[1724769446469,0.16104,62096.0,62095.0,0.06648]
[1724769446670,0.16104,62096.0,62095.0,0.3841]
[1724769446828,0.16104,62096.0,62095.0,0.3781]
[1724769446989,0.16104,62096.0,62095.0,0.3771]
[1724769447188,0.483121,62096.0,62095.0,0.3781]
[1724769447405,0.805202,62096.0,62095.0,0.3781]
[1724769447612,0.483121,62096.0,62095.0,0.3771]
[1724769447845,0.483121,62096.0,62095.0,0.3821]
[1724769448223,0.805202,62096.0,62095.0,0.3801]
[1724769449056,0.483121,62096.0,62095.0,0.3801]
[1724769449258,0.483121,62096.0,62095.0,0.43635]
[1724769449460,0.16104,62096.0,62095.0,0.43635]
[1724769449716,0.02523225,62098.0,62095.0,0.43635]
[1724769449954,0.02523225,62098.0,62097.0,0.001]
[1724769450143,0.18626725,62098.0,62097.0,0.001]
[1724769450364,0.50833825,62098.0,62097.0,0.001]
[1724769451715,0.50833825,62098.0,62097.0,0.005]
[1724769451953,0.50833825,62098.0,62097.0,0.009]
[1724769452808,0.50833825,62098.0,62097.0,0.008]
[1724769452809,0.83040925,62098.0,62097.0,0.008]
[1724769453011,1.3124457,62098.0,62097.0,0.008]
[1724769453223,1.65972977,62098.0,62097.0,0.004]
[1724769453426,1.65972977,62098.0,62097.0,0.012]
[1724769453632,1.73171241,62098.0,62097.0,0.012]
[1724769453852,1.73171241,62098.0,62097.0,0.008]
[1724769454063,1.73171241,62098.0,62092.0,0.00019387]
[1724769454064,0.805242,62093.0,62092.0,0.00019387]
[1724769454944,1.127339,62093.0,62092.0,0.00019387]
[1724769456295,0.04773463,62095.0,62092.0,0.06020326]
[1724769456510,0.20877963,62095.0,62092.0,0.06020326]
[1724769456720,0.24000288,62098.0,62093.0,0.001]
[1724769456942,0.16104,62097.0,62095.0,0.3946]
[1724769457163,0.16104,62096.0,62095.0,0.3946]
[1724769457382,0.483121,62096.0,62095.0,0.3946]
[1724769457808,0.16104,62096.0,62095.0,0.3946]
[1724769458022,0.483121,62096.0,62095.0,0.3946]
[1724769458280,0.483121,62096.0,62095.0,0.3956]
[1724769458505,0.483121,62096.0,62095.0,0.3946]
[1724769458719,0.39504674,62098.0,62095.0,0.3946]
[1724769458720,0.39504574,62098.0,62095.0,0.3946]
[1724769458933,0.483121,62096.0,62095.0,0.3976]
[1724769460259,0.483121,62096.0,62092.0,0.00019387]
[1724769460260,0.483145,62093.0,62092.0,0.00019387]
[1724769460485,1.0368135,62093.0,62092.0,0.00019387]
[1724769460705,1.99299896,62093.0,62092.0,0.00019387]
[1724769460937,1.99299896,62093.0,62082.0,0.000822]
[1724769460938,1.1097507,62083.0,62082.0,0.000822]
[1724769461157,2.15417025,62083.0,62082.0,0.000822]
[1724769461372,1.99323296,62083.0,62082.0,0.000822]
[1724769461806,2.17719841,62083.0,62082.0,0.000822]
[1724769462242,2.08072069,62083.0,62082.0,0.000822]
[1724769462676,1.93774829,62083.0,62082.0,0.000822]
[1724769462889,1.85784829,62083.0,62082.0,0.000822]
[1724769463572,1.86484829,62083.0,62082.0,0.001822]
[1724769464014,1.85784829,62083.0,62082.0,0.000822]